bitfinex/quotes_BTCUSD_20240701
["timestamp","ask_amount","ask_price","bid_price","bid_amount"]
[1719835972267,1.30349937,62823.0,62822.0,0.21961465]
[1719835972463,1.30349937,62823.0,62822.0,0.19961465]
[1719835972664,1.30349937,62823.0,62822.0,0.21961465]
[1719835973060,1.30349937,62823.0,62822.0,0.19961465]
[1719835973265,1.30349937,62823.0,62822.0,0.21961465]
[1719835973464,1.32983475,62823.0,62822.0,0.21961465]
[1719835974095,1.30349937,62823.0,62822.0,0.21961465]
[1719835974314,1.30349937,62823.0,62822.0,0.19961465]
[1719835974749,1.30224937,62823.0,62822.0,0.19961465]
[1719835975143,0.84332712,62823.0,62822.0,0.41961465]
[1719835975345,0.49874137,62823.0,62822.0,0.41961465]
[1719835976498,0.49874137,62823.0,62822.0,0.39961465]
[1719835976711,0.49874137,62823.0,62822.0,0.41961465]
[1719835977534,0.49874137,62823.0,62822.0,1.14119163]
[1719835977535,0.02246037,62823.0,62822.0,1.14119163]
[1719835977739,0.02246037,62823.0,62822.0,1.54295063]
[1719835977952,0.008,62823.0,62822.0,1.53295063]
[1719835978562,0.003,62823.0,62822.0,1.53295063]
[1719835978740,0.00084,62827.0,62826.0,0.2052]
[1719835978942,0.00084,62827.0,62826.0,0.61931465]
[1719835979147,0.01532424,62827.0,62826.0,0.61931465]
[1719835979348,0.00084,62827.0,62826.0,0.61931465]
[1719835979549,0.01532424,62827.0,62826.0,0.61931465]
[1719835979749,0.00084,62827.0,62826.0,0.61931465]
[1719835979953,0.01532424,62827.0,62826.0,0.61931465]
[1719835980154,0.00084,62827.0,62826.0,0.62331465]
[1719835980763,0.01532424,62827.0,62826.0,0.62331465]
[1719835980972,0.00084,62827.0,62826.0,0.62331465]
[1719835981333,0.01532424,62827.0,62826.0,0.62331465]
[1719835981539,0.01532424,62827.0,62826.0,0.62631465]
[1719835981766,0.01532424,62827.0,62826.0,0.82631465]
[1719835983639,0.01532424,62827.0,62826.0,0.66748365]
[1719835984836,0.01532424,62827.0,62826.0,0.42661465]
[1719835985081,0.01532424,62827.0,62826.0,0.50831465]
[1719835987441,0.49282524,62827.0,62826.0,0.40661465]
[1719835987846,0.81115924,62827.0,62826.0,0.40661465]
[1719835988841,0.49282524,62827.0,62826.0,0.42661465]
[1719835993164,1.20199324,62827.0,62826.0,0.40661465]
[1719835993371,1.20199324,62827.0,62826.0,0.02141465]
[1719835993372,1.69952724,62827.0,62826.0,0.02141465]
[1719835993610,1.72252724,62827.0,62826.0,0.02141465]
[1719835993785,1.74780459,62827.0,62826.0,0.02141465]
[1719835994345,1.74780459,62827.0,62826.0,0.007]
[1719835994754,1.75260809,62827.0,62826.0,0.007]
[1719835995474,1.286804,62825.0,62824.0,0.01441465]
[1719835995648,1.33508135,62825.0,62824.0,0.17324565]
[1719835995858,1.35436432,62825.0,62824.0,0.17324565]
[1719835996577,1.35536432,62825.0,62824.0,0.17324565]
[1719835996780,1.3557572,62825.0,62824.0,0.17324565]
[1719835998416,1.3557572,62825.0,62824.0,0.01441465]
[1719835998888,1.114239,62823.0,62822.0,0.01441465]
[1719835999199,1.13990923,62823.0,62822.0,0.01441465]
[1719835999388,1.15918201,62823.0,62822.0,0.01441465]
[1719835999984,1.15919934,62823.0,62822.0,0.01441465]
[1719836000165,1.15919934,62823.0,62822.0,0.01641465]
[1719836000367,1.13351178,62823.0,62822.0,0.01941465]
[1719836000581,1.13351178,62823.0,62822.0,0.005]
[1719836000582,1.67691293,62823.0,62822.0,0.005]
[1719836000757,1.85861293,62823.0,62822.0,0.005]
[1719836001117,1.85861293,62823.0,62822.0,0.002]
[1719836001457,1.99530476,62823.0,62822.0,0.002]
[1719836001669,1.99530476,62823.0,62816.0,0.17324565]
[1719836001670,1.284747,62817.0,62816.0,0.17324565]
[1719836001888,1.33319039,62817.0,62816.0,0.158831]
[1719836002072,1.35313877,62817.0,62816.0,0.158831]
[1719836002774,1.35313877,62817.0,62811.0,0.02914535]
[1719836002775,0.646115,62812.0,62811.0,0.0147307]
[1719836003020,1.25230737,62812.0,62811.0,0.0147307]
[1719836003246,1.2721926,62812.0,62811.0,0.0147307]
[1719836003426,2.22497921,62812.0,62811.0,0.0147307]
[1719836003626,2.25166397,62812.0,62811.0,0.0147307]
[1719836004051,2.25466397,62812.0,62811.0,0.0157307]
[1719836004224,2.38539837,62812.0,62811.0,0.0147307]
[1719836004426,2.44405768,62812.0,62811.0,0.0147307]
[1719836004627,2.46185768,62812.0,62811.0,0.0157307]
[1719836005159,2.31332328,62812.0,62811.0,0.0157307]
[1719836005270,2.32432328,62812.0,62811.0,0.0167307]
[1719836005778,2.26566397,62812.0,62811.0,0.0167307]
[1719836006183,2.26543896,62812.0,62811.0,0.0167307]
[1719836006800,2.28023896,62812.0,62811.0,0.0167307]
[1719836009483,2.25377921,62812.0,62811.0,0.0167307]
[1719836009688,2.28007201,62812.0,62811.0,0.0167307]
[1719836010029,2.26527201,62812.0,62811.0,0.0167307]
[1719836011300,1.94686201,62812.0,62811.0,0.0167307]
[1719836011683,1.92056921,62812.0,62811.0,0.0167307]
[1719836013066,1.58973023,62812.0,62811.0,0.0167307]
[1719836018205,1.58973023,62812.0,62811.0,0.2167307]
[1719836018206,1.24832023,62812.0,62811.0,0.2167307]
[1719836018462,1.24832023,62812.0,62811.0,0.2923307]
[1719836019074,1.23732023,62812.0,62811.0,0.2913307]
[1719836019462,1.23732023,62812.0,62811.0,0.2903307]
[1719836019661,1.23432023,62812.0,62811.0,0.2903307]
[1719836019817,1.23732023,62812.0,62811.0,0.2913307]
[1719836020867,1.23732023,62812.0,62811.0,0.0157307]
[1719836021072,1.46135619,62812.0,62811.0,0.0157307]
[1719836021273,2.02147132,62812.0,62811.0,0.0167307]
[1719836021472,1.95210517,62812.0,62811.0,0.0167307]
[1719836022658,1.95175632,62812.0,62811.0,0.0167307]
[1719836024883,1.96655632,62812.0,62811.0,0.0167307]
[1719836025946,1.94166921,62812.0,62811.0,0.0167307]
[1719836026139,1.96689744,62812.0,62811.0,0.0167307]
[1719836026736,2.00502211,62812.0,62811.0,0.0167307]
[1719836029420,2.00504171,62812.0,62811.0,0.0167307]
[1719836029837,2.08674172,62812.0,62811.0,0.0167307]
[1719836032622,2.41984363,62812.0,62811.0,0.0167307]
[1719836032832,2.49149256,62812.0,62811.0,0.0167307]
[1719836033074,2.65382627,62812.0,62811.0,0.0167307]
[1719836033912,2.63902627,62812.0,62811.0,0.0167307]
[1719836034740,2.55732627,62812.0,62811.0,0.0167307]
[1719836034940,2.63902627,62812.0,62811.0,0.0167307]
[1719836035713,2.5672817,62812.0,62811.0,0.0167307]
[1719836035913,2.5820817,62812.0,62811.0,0.0167307]
[1719836036138,2.6535687,62812.0,62811.0,0.0167307]
[1719836038213,2.6535687,62812.0,62811.0,7e-07]
[1719836038214,3.34210484,62812.0,62811.0,7e-07]
[1719836038410,3.38862595,62812.0,62811.0,7e-07]
[1719836038851,3.29209484,62812.0,62811.0,7e-07]
[1719836039077,3.38961294,62812.0,62811.0,7e-07]
[1719836039507,0.318496,62795.0,62792.0,0.01441465]
[1719836039722,0.477759,62793.0,62792.0,0.17324565]
[1719836039928,0.8217995,62793.0,62792.0,0.17324565]
[1719836040136,0.86454211,62793.0,62792.0,0.17324565]
[1719836040359,1.18304811,62793.0,62792.0,0.17324565]
[1719836040575,1.50155411,62793.0,62792.0,0.158831]
[1719836040786,1.18304811,62793.0,62792.0,0.158831]
[1719836040993,1.50155411,62793.0,62792.0,0.158831]
[1719836041433,1.60156186,62793.0,62792.0,0.158831]
[1719836041644,1.60156186,62793.0,62791.0,0.000924]
[1719836041645,1.114788,62792.0,62791.0,0.000924]
[1719836041856,1.26333025,62792.0,62791.0,0.000924]
[1719836042065,1.92585569,62792.0,62791.0,0.000924]
[1719836042489,1.76352198,62792.0,62791.0,0.000924]
[1719836042926,1.81115647,62792.0,62791.0,0.000924]
[1719836044834,1.76343107,62792.0,62791.0,0.000924]
[1719836045032,1.78648899,62792.0,62791.0,0.001924]
[1719836045205,1.85726237,62792.0,62791.0,0.001924]
[1719836045871,2.09453115,62792.0,62791.0,0.001924]
[1719836046663,2.41304215,62792.0,62791.0,0.001924]
[1719836047114,2.7665275,62792.0,62791.0,0.001924]
[1719836047695,2.76702498,62792.0,62791.0,0.001924]
[1719836047939,2.75502498,62792.0,62791.0,0.001924]
[1719836048168,2.74402498,62792.0,62791.0,0.000924]
[1719836048399,2.77102498,62792.0,62791.0,0.002924]
[1719836048872,2.75702498,62792.0,62791.0,0.001924]
[1719836050263,2.77102498,62792.0,62791.0,0.002924]
[1719836051055,2.77120963,62792.0,62791.0,0.002924]
[1719836051274,2.77120963,62792.0,62791.0,0.00286531]
[1719836051275,2.97560963,62792.0,62791.0,0.00286531]
[1719836052494,2.97560963,62792.0,62791.0,3.1e-07]
[1719836052495,3.43647174,62792.0,62791.0,3.1e-07]
[1719836052692,3.43648181,62792.0,62791.0,3.1e-07]
[1719836052933,3.55380593,62792.0,62791.0,3.1e-07]
[1719836053488,3.57044672,62792.0,62791.0,3.1e-07]
[1719836054085,3.49822182,62792.0,62791.0,3.1e-07]
[1719836054293,3.57076305,62792.0,62791.0,3.1e-07]
[1719836054700,3.57076239,62792.0,62791.0,3.1e-07]
[1719836056207,3.49839283,62792.0,62791.0,3.1e-07]
[1719836056659,3.57079262,62792.0,62791.0,3.1e-07]
[1719836057424,3.47238531,62792.0,62791.0,3.1e-07]
[1719836057627,3.57071668,62792.0,62791.0,3.1e-07]
[1719836060524,3.47238531,62792.0,62791.0,3.1e-07]
[1719836060885,3.57029262,62792.0,62791.0,3.1e-07]
[1719836062228,3.5251934,62792.0,62791.0,3.1e-07]
[1719836062437,3.1295824,62792.0,62791.0,3.1e-07]
[1719836062855,3.2088824,62792.0,62791.0,3.1e-07]
[1719836063436,3.14756129,62792.0,62791.0,3.1e-07]
[1719836063660,3.16236129,62792.0,62791.0,3.1e-07]
[1719836063904,2.96764097,62792.0,62791.0,3.1e-07]
[1719836064617,2.10949997,62792.0,62791.0,3.1e-07]
[1719836064818,2.16829997,62792.0,62791.0,3.1e-07]
[1719836065362,1.433349,62790.0,62789.0,3.7e-07]
[1719836065563,1.90706032,62790.0,62789.0,3.7e-07]
[1719836065892,2.17057208,62790.0,62789.0,3.7e-07]
[1719836066096,2.19357208,62790.0,62789.0,3.7e-07]
[1719836066461,2.23894086,62790.0,62789.0,3.7e-07]
[1719836067118,2.21315387,62790.0,62789.0,3.7e-07]
[1719836067335,2.2380023,62790.0,62789.0,3.7e-07]
[1719836067744,2.25200112,62790.0,62789.0,0.00100037]
[1719836067946,2.26500112,62790.0,62789.0,0.00200037]
[1719836069171,2.10266741,62790.0,62789.0,0.00200037]
[1719836070376,2.10246589,62790.0,62789.0,0.00200037]
[1719836073581,2.07782016,62790.0,62789.0,0.00200037]
[1719836073726,2.10236009,62790.0,62789.0,0.00200037]
[1719836076020,2.10229739,62790.0,62789.0,0.00200037]
[1719836076220,2.11709739,62790.0,62789.0,0.00200037]
[1719836076451,2.84155888,62790.0,62789.0,0.00200037]
[1719836076672,2.88807999,62790.0,62789.0,0.00200037]
[1719836077103,2.79259698,62790.0,62789.0,0.00200037]
[1719836077341,2.88812708,62790.0,62789.0,0.00200037]
[1719836077549,3.37454908,62790.0,62789.0,3.7e-07]
[1719836078098,3.4196483,62790.0,62789.0,3.7e-07]
[1719836080460,3.42099515,62790.0,62789.0,3.7e-07]
[1719836080873,3.3241182,62790.0,62789.0,3.7e-07]
[1719836081086,3.42099618,62790.0,62789.0,3.7e-07]
[1719836081316,2.27090835,62786.0,62785.0,3.7e-07]
[1719836081531,3.00012314,62786.0,62785.0,3.7e-07]
[1719836081758,3.11138494,62786.0,62785.0,3.7e-07]
[1719836082280,3.18302082,62786.0,62785.0,3.7e-07]
[1719836083634,3.18350871,62786.0,62785.0,3.7e-07]
[1719836083832,3.18350947,62786.0,62785.0,3.7e-07]
[1719836084249,3.19250947,62786.0,62785.0,3.7e-07]
[1719836084457,3.20050947,62786.0,62785.0,0.00100037]
[1719836084826,3.18350947,62786.0,62785.0,3.7e-07]
[1719836085027,3.21150947,62786.0,62785.0,3.7e-07]
[1719836087026,3.21166451,62786.0,62785.0,3.7e-07]
[1719836088313,3.19686451,62786.0,62785.0,3.7e-07]
[1719836088517,3.1651434,62786.0,62785.0,3.7e-07]
[1719836089399,3.16494784,62786.0,62785.0,3.7e-07]
[1719836090302,3.16494804,62786.0,62785.0,3.7e-07]
[1719836091248,3.15603422,62786.0,62785.0,3.7e-07]
[1719836094035,3.08419811,62786.0,62785.0,3.7e-07]
[1719836094267,3.15606645,62786.0,62785.0,3.7e-07]
[1719836096627,3.05870791,62786.0,62785.0,3.7e-07]
[1719836096991,3.15434671,62786.0,62785.0,3.7e-07]
[1719836097195,3.17329141,62786.0,62785.0,3.7e-07]
[1719836097712,3.09149141,62786.0,62785.0,3.7e-07]
[1719836097925,3.17329141,62786.0,62785.0,3.7e-07]
[1719836099966,3.17413103,62786.0,62785.0,3.7e-07]
[1719836100170,3.17083103,62786.0,62785.0,3.7e-07]
[1719836102270,3.12087372,62786.0,62785.0,3.7e-07]
[1719836102479,3.21729976,62786.0,62785.0,3.7e-07]
[1719836102686,3.13549976,62786.0,62785.0,3.7e-07]
[1719836102936,3.04279976,62786.0,62785.0,3.7e-07]
[1719836103489,2.58113665,62786.0,62785.0,0.09330037]
[1719836103766,2.66293665,62786.0,62785.0,0.16800037]
[1719836103940,2.07726094,62786.0,62785.0,0.16800037]
[1719836104110,2.15906094,62786.0,62785.0,0.16800037]
[1719836104337,2.08761477,62786.0,62785.0,0.16800037]
[1719836105518,1.90202942,62786.0,62785.0,0.16800037]
[1719836105721,1.65789044,62786.0,62785.0,0.16800037]
[1719836105922,0.88151101,62786.0,62785.0,0.16800037]
[1719836106181,0.90641004,62786.0,62785.0,0.35320037]
[1719836106331,1.22495204,62786.0,62785.0,0.35320037]
[1719836106544,1.17958326,62786.0,62785.0,0.16800037]
[1719836106746,1.16558326,62786.0,62785.0,0.16800037]
[1719836106967,1.17458326,62786.0,62785.0,0.37320037]
[1719836107160,1.27458326,62786.0,62785.0,0.16800037]
[1719836107362,1.27458326,62786.0,62785.0,0.37320037]
[1719836107363,1.26558326,62786.0,62785.0,0.37320037]
[1719836107767,1.16558326,62786.0,62785.0,0.37320037]
[1719836107966,1.17458326,62786.0,62785.0,0.3732]
[1719836108372,0.53749926,62786.0,62785.0,0.5732]
[1719836108548,0.51449926,62786.0,62785.0,0.5732]
[1719836109070,0.48960023,62786.0,62785.0,0.5732]
[1719836109472,0.58960023,62786.0,62785.0,0.5732]
[1719836109996,0.58960023,62786.0,62785.0,0.5742]
[1719836110196,0.58960023,62786.0,62785.0,0.5732]
[1719836110334,0.58960023,62786.0,62785.0,0.58761465]
[1719836110335,0.01508723,62786.0,62785.0,0.58761465]
[1719836110534,0.159266,62788.0,62787.0,0.21441465]
[1719836110764,0.159266,62788.0,62787.0,0.83184565]
[1719836110963,0.259266,62788.0,62787.0,0.83184565]
[1719836111975,0.00084,62792.0,62791.0,0.75297265]
[1719836112186,0.00084,62792.0,62791.0,1.16328865]
[1719836112387,0.00084,62792.0,62791.0,1.15328865]
[1719836112984,0.00084,62792.0,62791.0,0.83477265]
[1719836113258,0.00084,62792.0,62791.0,0.59371465]
[1719836113259,0.478606,62792.0,62791.0,0.59371465]
[1719836113463,0.797117,62792.0,62791.0,0.59371465]
[1719836113587,0.478606,62792.0,62791.0,0.59371465]
[1719836113994,0.797117,62792.0,62791.0,0.57371465]
[1719836114230,0.798117,62792.0,62791.0,0.57371465]
[1719836114642,0.797117,62792.0,62791.0,0.57371465]
[1719836115124,0.798117,62792.0,62791.0,0.57371465]
[1719836115329,0.797117,62792.0,62791.0,0.57371465]
[1719836115736,1.116628,62792.0,62791.0,0.18851465]
[1719836116009,1.15216442,62792.0,62791.0,0.1741]
[1719836116212,1.15316442,62792.0,62791.0,0.1741]
[1719836116355,1.15316442,62792.0,62791.0,0.18851465]
[1719836116356,1.25316442,62792.0,62791.0,0.18851465]
[1719836116559,1.25116442,62792.0,62791.0,0.1741]
[1719836116728,1.25616442,62792.0,62791.0,0.18851465]
[1719836117372,1.26216442,62792.0,62791.0,0.18851465]
[1719836117775,0.318537,62787.0,62785.0,0.000924]
[1719836117986,0.577813,62786.0,62785.0,0.000924]
[1719836118306,1.25040283,62786.0,62785.0,0.000924]
[1719836119281,0.637084,62786.0,62785.0,0.000924]
[1719836119531,1.12531852,62786.0,62785.0,0.000924]
[1719836122233,1.14831852,62786.0,62785.0,0.000924]
[1719836122442,1.27428614,62786.0,62785.0,0.000924]
[1719836123638,1.59282814,62786.0,62785.0,0.000924]
[1719836123854,1.79712814,62786.0,62785.0,0.000924]
[1719836124257,1.79690567,62786.0,62785.0,0.000924]
[1719836125630,1.59260567,62786.0,62785.0,0.000924]
[1719836126197,1.60360567,62786.0,62785.0,0.001924]
[1719836126380,1.59860567,62786.0,62785.0,0.001924]
[1719836126586,1.59260567,62786.0,62785.0,0.000924]
[1719836126927,1.59260567,62786.0,62785.0,0.001924]
[1719836126928,1.62060567,62786.0,62785.0,0.001924]
[1719836127550,1.62064432,62786.0,62785.0,0.001924]
[1719836127790,1.66655589,62786.0,62785.0,0.001924]
[1719836129528,1.62064432,62786.0,62785.0,0.001924]
[1719836130419,1.62064432,62786.0,62785.0,0.172124]
[1719836130643,1.27910232,62786.0,62785.0,0.172124]
[1719836131240,1.27897855,62786.0,62785.0,0.172124]
[1719836133987,1.27857087,62786.0,62785.0,0.172124]
[1719836136122,1.25331852,62786.0,62785.0,0.172124]
[1719836136248,1.27849435,62786.0,62785.0,0.172124]
[1719836137207,1.25331852,62786.0,62785.0,0.172124]
[1719836137407,1.27854718,62786.0,62785.0,0.172124]
[1719836137608,1.27854718,62786.0,62785.0,0.001924]
[1719836137816,1.36034718,62786.0,62785.0,0.001924]
[1719836137990,1.74551864,62786.0,62785.0,0.001924]
[1719836139606,1.70188918,62786.0,62785.0,0.001924]
[1719836140467,1.74659677,62786.0,62785.0,0.001924]
[1719836140640,1.74686045,62786.0,62785.0,0.001924]
[1719836141707,1.92399943,62786.0,62785.0,0.001924]
[1719836141845,1.90919943,62786.0,62785.0,0.001924]
[1719836142049,1.92399943,62786.0,62785.0,0.001924]
[1719836143756,1.88370709,62786.0,62785.0,0.001924]
[1719836143937,1.92426527,62786.0,62785.0,0.001924]
[1719836144153,2.08659898,62786.0,62785.0,0.001924]
[1719836144361,2.65686923,62786.0,62785.0,0.001924]
[1719836144698,2.84245458,62786.0,62785.0,0.001924]
[1719836144948,3.25681658,62786.0,62785.0,0.001924]
[1719836145154,3.27345737,62786.0,62785.0,0.001924]
[1719836145356,2.68196166,62786.0,62785.0,0.001924]
[1719836145501,2.69676166,62786.0,62785.0,0.001924]
[1719836145944,2.68196166,62786.0,62785.0,0.001924]
[1719836146359,2.69676166,62786.0,62785.0,0.001924]
[1719836146563,2.84429537,62786.0,62785.0,0.001924]
[1719836146771,2.76120894,62786.0,62785.0,0.001924]
[1719836146980,2.69960141,62786.0,62785.0,0.001924]
[1719836147557,2.69895818,62786.0,62785.0,0.001924]
[1719836150098,2.69862189,62786.0,62785.0,0.001924]
[1719836150941,2.68462189,62786.0,62785.0,0.000924]
[1719836151257,2.68462189,62786.0,62785.0,0.001924]
[1719836151497,2.8469556,62786.0,62785.0,0.001924]
[1719836151926,3.1106756,62786.0,62785.0,1e-06]
[1719836152133,3.1106756,62786.0,62781.0,1e-06]
[1719836152134,2.04829635,62782.0,62781.0,1e-06]
[1719836152340,2.04829635,62782.0,62774.0,0.0041247]
[1719836152341,0.287299,62775.0,62774.0,0.0041247]
[1719836152538,1.46707435,62775.0,62774.0,0.0041247]
[1719836152745,2.55625152,62775.0,62774.0,0.0041247]
[1719836152951,2.62924316,62775.0,62774.0,0.0041247]
[1719836153165,2.61444316,62775.0,62774.0,0.0041247]
[1719836153371,2.61378468,62775.0,62774.0,0.0041247]
[1719836153585,2.62858468,62775.0,62774.0,0.0041247]
[1719836153780,2.67329227,62775.0,62774.0,0.0041247]
[1719836153993,2.66449227,62775.0,62774.0,0.0041247]
[1719836154341,2.67049227,62775.0,62774.0,0.0041247]
[1719836154746,2.67329227,62775.0,62774.0,0.0041247]
[1719836155156,2.70129227,62775.0,62774.0,0.0041247]
[1719836155363,1.96470609,62775.0,62774.0,0.0041247]
[1719836155582,2.14542902,62775.0,62774.0,0.0041247]
[1719836156550,2.07224053,62775.0,62774.0,0.0041247]
[1719836156957,2.06950609,62775.0,62774.0,0.0041247]
[1719836157177,2.09524173,62775.0,62774.0,0.0041247]
[1719836160414,2.09526564,62775.0,62774.0,0.0041247]
[1719836161670,2.25759935,62775.0,62774.0,0.0041247]
[1719836161787,2.09526564,62775.0,62774.0,0.0041247]
[1719836161990,2.28456564,62775.0,62774.0,0.0041247]
[1719836162238,2.29936564,62775.0,62774.0,0.0041247]
[1719836162465,2.39109382,62775.0,62774.0,0.0041247]
[1719836162649,2.20550847,62775.0,62774.0,0.0041247]
[1719836162854,2.55342753,62775.0,62774.0,0.0041247]
[1719836163275,2.87202553,62775.0,62774.0,0.0041247]
[1719836164387,2.85722553,62775.0,62774.0,0.0041247]
[1719836165317,2.85592384,62775.0,62774.0,0.0041247]
[1719836165518,2.85648197,62775.0,62774.0,0.0041247]
[1719836166518,2.85648197,62775.0,62774.0,0.0041247]
[1719836168441,2.53788397,62775.0,62774.0,0.0041247]
[1719836168638,2.43950096,62775.0,62774.0,0.0041247]
[1719836168847,2.53790244,62775.0,62774.0,0.0041247]
[1719836169251,2.32258429,62775.0,62774.0,0.0041247]
[1719836169457,2.10453169,62775.0,62774.0,0.0041247]
[1719836169659,2.10453169,62775.0,62774.0,0.1893247]
[1719836169660,1.31500936,62775.0,62774.0,0.1893247]
[1719836169864,1.17955728,62775.0,62774.0,0.2075247]
[1719836170327,1.17955728,62775.0,62774.0,0.3927247]
[1719836170894,1.15155728,62775.0,62774.0,0.3927247]
[1719836171096,1.28855728,62775.0,62774.0,0.3927247]
[1719836171297,1.30255728,62775.0,62774.0,0.3927247]
[1719836171510,1.30255728,62775.0,62774.0,0.2075247]
[1719836171904,1.30255728,62775.0,62774.0,0.4127247]
[1719836172106,1.3042055,62775.0,62774.0,0.4127247]
[1719836172451,0.9856075,62775.0,62774.0,0.4127247]
[1719836175838,0.6670095,62775.0,62774.0,0.4127247]
[1719836178089,0.66805902,62775.0,62774.0,0.4127247]
[1719836178640,0.66805902,62775.0,62774.0,0.4136487]
[1719836179701,0.16716202,62775.0,62774.0,0.6136487]
[1719836179910,0.06716202,62775.0,62774.0,0.6136487]
[1719836180114,0.15677885,62775.0,62774.0,0.6136487]
[1719836180337,0.13839017,62775.0,62774.0,0.6136487]
[1719836180718,0.12439017,62775.0,62774.0,0.6136487]
[1719836181035,0.11039017,62775.0,62774.0,0.6136487]
[1719836181202,0.01139017,62775.0,62774.0,0.6146487]
[1719836181401,0.11139017,62775.0,62774.0,0.4094487]
[1719836181609,0.11039017,62775.0,62774.0,0.5936487]
[1719836181855,0.11139017,62775.0,62774.0,0.5946487]
[1719836182400,0.11139017,62775.0,62774.0,0.6146487]
[1719836182769,0.11239017,62775.0,62774.0,0.6156487]
[1719836182975,0.90888517,62775.0,62774.0,0.2104487]
[1719836183159,0.90888517,62775.0,62774.0,0.0968487]
[1719836183160,0.93713212,62775.0,62774.0,0.0968487]
[1719836183522,0.93713212,62775.0,62774.0,0.0070487]
[1719836183697,1.27773012,62775.0,62774.0,0.0060487]
[1719836184066,1.28073012,62775.0,62774.0,0.0060487]
[1719836184488,1.27973012,62775.0,62774.0,0.0050487]
[1719836185286,1.27673012,62775.0,62774.0,0.0050487]
[1719836185488,1.27873012,62775.0,62774.0,0.0050487]
[1719836185733,1.27673012,62775.0,62774.0,0.0050487]
[1719836186316,1.27773012,62775.0,62774.0,0.0050487]
[1719836186744,1.28073012,62775.0,62774.0,0.0050487]
[1719836187256,1.24948317,62775.0,62774.0,0.0050487]
[1719836187451,1.27782467,62775.0,62774.0,0.0050487]
[1719836187677,1.25148317,62775.0,62774.0,0.0050487]
[1719836187886,1.27983363,62775.0,62774.0,0.0050487]
[1719836189529,1.95727061,62775.0,62774.0,0.0050487]
[1719836190379,1.95527061,62775.0,62774.0,0.0050487]
[1719836190758,2.02832623,62775.0,62774.0,0.0050487]
[1719836190975,2.01803178,62775.0,62774.0,0.0050487]
[1719836191609,2.01703178,62775.0,62774.0,0.0050487]
[1719836191827,2.09883178,62775.0,62774.0,0.0050487]
[1719836192042,2.10783178,62775.0,62774.0,0.0050487]
[1719836194298,2.10818165,62775.0,62774.0,0.0050487]
[1719836196413,2.02438165,62775.0,62774.0,0.0050487]
[1719836196619,1.91166132,62775.0,62774.0,0.0050487]
[1719836196840,1.82986132,62775.0,62774.0,0.0050487]
[1719836197057,1.91166132,62775.0,62774.0,0.0050487]
[1719836197279,1.88311578,62775.0,62774.0,0.0050487]
[1719836197437,1.91147831,62775.0,62774.0,0.0050487]
[1719836197778,1.66729749,62775.0,62774.0,0.0050487]
[1719836198318,1.66729771,62775.0,62774.0,0.0050487]
[1719836198913,1.74909771,62775.0,62774.0,0.0050487]
[1719836201582,1.7207768,62775.0,62774.0,0.0050487]
[1719836201736,1.74894314,62775.0,62774.0,0.0050487]
[1719836202970,1.94454314,62775.0,62774.0,0.0050487]
[1719836203359,2.1811973,62775.0,62774.0,0.0050487]
[1719836204892,2.07871578,62775.0,62774.0,0.0050487]
[1719836205090,2.18071893,62775.0,62774.0,0.0050487]
[1719836206298,2.10668967,62775.0,62774.0,0.0050487]
[1719836206495,2.01718967,62775.0,62774.0,0.0050487]
[1719836206923,1.82928967,62775.0,62774.0,0.0050487]
[1719836207123,1.91108967,62775.0,62774.0,0.0050487]
[1719836207484,1.34835269,62775.0,62774.0,0.1978487]
[1719836208124,1.34859358,62775.0,62774.0,0.1978487]
[1719836209149,0.68839758,62775.0,62774.0,0.6030487]
[1719836209353,0.68839758,62775.0,62774.0,0.61746335]
[1719836209354,0.05660495,62775.0,62774.0,0.61746335]
[1719836209637,0.05660495,62775.0,62774.0,0.62746335]
[1719836209935,0.02770433,62775.0,62774.0,0.62746335]
[1719836210327,0.02770433,62775.0,62774.0,0.94910333]
[1719836210328,0.01870433,62775.0,62774.0,0.94910333]
[1719836210559,0.00970433,62775.0,62774.0,0.94910333]
[1719836210781,0.001,62775.0,62774.0,0.95110333]
[1719836210964,0.002,62775.0,62774.0,0.95110333]
[1719836211578,0.001,62775.0,62774.0,0.95010333]
[1719836212208,0.159287,62780.0,62779.0,0.3959]
[1719836212336,0.159287,62780.0,62779.0,0.759931]
[1719836212337,0.259287,62780.0,62779.0,0.759931]
[1719836212709,0.26901683,62780.0,62779.0,0.759931]
[1719836213837,0.27001683,62780.0,62779.0,0.762931]
[1719836214080,0.27101683,62780.0,62779.0,0.764931]
[1719836214290,0.58958883,62780.0,62779.0,0.764931]
[1719836214812,0.27101683,62780.0,62779.0,0.764931]
[1719836216083,0.11172983,62780.0,62779.0,0.764931]
[1719836216279,0.11172983,62780.0,62779.0,0.6061]
[1719836216510,0.27101583,62780.0,62779.0,0.6061]
[1719836216713,0.58958783,62780.0,62779.0,0.6061]
[1719836221933,0.90815983,62780.0,62779.0,0.6061]
[1719836222571,0.58958783,62780.0,62779.0,0.6061]
[1719836223780,0.48958783,62780.0,62779.0,0.6061]
[1719836226536,0.17101583,62780.0,62779.0,0.6061]
[1719836227440,0.01172983,62780.0,62779.0,1.58929563]
[1719836227645,0.01172983,62780.0,62779.0,2.10787263]
[1719836227856,0.002,62780.0,62779.0,2.42644963]
[1719836228258,0.002,62780.0,62779.0,2.62644963]
[1719836228385,0.002,62780.0,62779.0,2.42644963]
[1719836228589,0.00084,62781.0,62780.0,1.73461665]
[1719836228791,0.00084,62781.0,62780.0,2.05848663]
[1719836230797,0.00184,62781.0,62780.0,2.06648663]
[1719836231421,0.00184,62781.0,62780.0,2.07548663]
[1719836231422,0.00284,62781.0,62780.0,2.07548663]
[1719836233818,0.00284,62781.0,62780.0,1.91665563]
[1719836235632,0.00284,62781.0,62780.0,0.80165363]
[1719836236102,0.01091834,62781.0,62780.0,0.80165363]
[1719836236392,0.01091834,62781.0,62780.0,0.62931465]
[1719836236799,0.01091834,62781.0,62780.0,0.52061465]
[1719836237006,0.00991834,62781.0,62780.0,0.51161465]
[1719836237430,0.00284,62781.0,62780.0,0.51861465]
[1719836237708,0.00184,62781.0,62780.0,0.51061465]
[1719836238319,0.00284,62781.0,62780.0,0.68690065]
[1719836238875,0.00284,62781.0,62780.0,1.59348363]
[1719836239301,0.00284,62781.0,62780.0,1.91205563]
[1719836240527,0.00284,62781.0,62780.0,2.11205563]
[1719836244404,0.00284,62781.0,62780.0,2.43062763]
[1719836248136,0.00284,62781.0,62780.0,2.23062763]
[1719836248680,0.00284,62781.0,62780.0,1.91205563]
[1719836248868,0.00284,62781.0,62780.0,1.59348363]
[1719836257507,0.00284,62781.0,62780.0,1.99788363]
[1719836257705,0.00284,62781.0,62780.0,2.31645563]
[1719836257899,0.00284,62781.0,62780.0,1.60678363]
[1719836260237,0.00284,62781.0,62780.0,2.12805563]
[1719836260640,0.00284,62781.0,62780.0,2.32805563]
[1719836261402,0.00284,62781.0,62780.0,2.12805563]
[1719836261948,0.00284,62781.0,62780.0,2.32805563]
[1719836262751,0.00284,62781.0,62780.0,2.12805563]
[1719836262950,0.00284,62781.0,62780.0,2.32805563]